Cogmind - Beta 13 @@@ ROGUE MODE // 2024.04.26 @ 19:30:45 Player: tartine Result: Self-destructed Performance ------------- Evolutions (3) 1500 Regions Visited (6) 1200 Robots Destroyed (26) 130 Value Destroyed (425) 425 Prototype IDs (2) 40 Alien Tech Used (0) 0 Bonus (502) 502 TOTAL SCORE: 3797 Bonus ------- High Alert Combat Kills 2 Entered DSFs 500 Cogmind --------- Core Integrity 685/700 Matter 199/300 Energy 290/290 System Corruption 0% Temperature Cool (0) Movement Flying (200) Ox2 Location -7/DSF Parts ------- > --- POWER (1) -------- Improved Deuterium Engine > --- PROPULSION (7) --- Flight Unit > --- UTILITY (3) ------ Visual Processing Unit Improved Targeting Computer Core Shielding > --- WEAPON (2) ------- (None) > --- INVENTORY (5) ---- Improved Deuterium Engine Hardened Medium Armor Plating Gauss Rifle Gauss Rifle Heavy Rocket Launcher Peak State ------------ > --- POWER ------------ Improved Deuterium Engine > --- PROPULSION ------- Flight Unit Flight Unit Flight Unit Flight Unit Flight Unit Flight Unit Cesium-ion Thruster > --- UTILITY ---------- Visual Processing Unit Improved Targeting Computer Core Shielding > --- WEAPON ----------- Improved EM Pulse Cannon Advanced Assault Cannon > --- INVENTORY -------- Improved Deuterium Engine Shock Rifle Heavy Rocket Launcher [Rating: 27] Favorites ----------- Power Light Ion Engine Engine Light Ion Engine Power Core Nuclear Core Propulsion Flight Unit Wheel Wheel Flight Unit Flight Unit Utility Visual Processing Unit Storage Small Storage Unit Processor Visual Processing Unit Protection Core Shielding Weapon EM Pulse Gun Energy Gun EM Pulse Gun Energy Cannon Beam Cannon Ballistic Gun Assault Rifle Ballistic Cannon Advanced Assault Cannon Build | -11 -10 -9 -9 -8 -7 -7 ------- Run | Yrd Mat Mat Min Mat Fac DSF Slots Evolved 6 | . . 2 . 2 2 . Power . | . . . . . . . Propulsion 5 | . . 2 . 1 2 . Utility 1 | . . . . 1 . . Weapon . | . . . . . . . Parts Attached 38 | 6 7 2 4 14 4 1 Power 6 | 1 1 . 2 2 . . Engine 5 | 1 1 . 2 1 . . Core 1 | . . . . 1 . . Reactor . | . . . . . . . Propulsion 17 | 2 4 2 . 7 2 . Treads . | . . . . . . . Leg . | . . . . . . . Wheel 2 | 2 . . . . . . Hover . | . . . . . . . Flight 15 | . 4 2 . 7 2 . Utility 6 | 1 1 . 1 3 . . Device . | . . . . . . . Storage 1 | 1 . . . . . . Processor 2 | . 1 . . 1 . . Hackware . | . . . . . . . Protection 3 | . . . 1 2 . . Artifact . | . . . . . . . Weapon 9 | 2 1 . 1 2 2 1 Energy Gun 2 | 1 . . . 1 . . Energy Cannon 3 | . 1 . . . 2 . Ballistic Gun 3 | 1 . . 1 . . 1 Ballistic Cannon 1 | . . . . 1 . . Launcher . | . . . . . . . Special Weapon . | . . . . . . . Impact Weapon . | . . . . . . . Slashing Weapon . | . . . . . . . Piercing Weapon . | . . . . . . . Special Melee Weapon . | . . . . . . . Unidentified Prototypes . | . . . . . . . Parts Lost 14 | . 2 1 1 4 . 6 Power 2 | . 1 1 . . . . Propulsion 11 | . 1 . . 4 . 6 Utility . | . . . . . . . Weapon 1 | . . . 1 . . . Highest Loss Streak 6 | . 2 1 2 4 . 6 To Critical Strikes . | . . . . . . . Average Slot Usage (%) 86 | . 77 86 94 95 100 100 Engine 10 | . 14 11 9 6 7 7 Wheel 1 | . 3 . . . . . Flight 35 | . 23 42 44 43 53 53 Processor 9 | . 5 11 11 16 15 15 Protection 3 | . . . 9 9 7 7 Energy Gun 8 | . 14 11 1 6 . . Energy Cannon 5 | . 2 11 11 5 7 1 Ballistic Gun 7 | . 11 . 9 3 . 5 Ballistic Cannon 1 | . . . . 2 7 7 Naked Turns . | . . . . . . . Heaviest Build 24 | 12 12 8 15 20 24 24 Greatest Support 29 | 26 26 16 16 21 29 29 Greatest Overweight (x) 2 | . 2 . . 1 . 1 Average Overweight (x) . | . . . . . . . Largest Inventory Capacity 8 | 8 8 5 5 5 5 5 Average Capacity 5 | 6 5 5 5 5 5 5 Most Carried 5 | 3 5 4 5 5 5 5 Average Carried 3 | 1 3 3 4 3 3 4 Final Capacity 8 | 8 5 5 5 5 5 5 Final Carried 5 | 3 5 3 5 4 4 5 Class Distribution -------------------- 51% | Scavenger-Sprinter 48% | Mutant Dominant Class ---------------- Mutant | -10/Materials Scavenger-Sprinter | -9/Materials Scavenger-Sprinter | -9/Mines Scavenger-Sprinter | -8/Materials Scavenger-Sprinter | -7/Factory Scavenger-Sprinter | -7/DSF Resources | -11 -10 -9 -9 -8 -7 -7 ----------- Run | Yrd Mat Mat Min Mat Fac DSF Matter Collected 529 | 266 111 . 12 140 . . Remotely . | . . . . . . . Salvage Created 571 | 100 221 . 62 188 . . Parts 53 | 5 24 . 8 16 . . Haulers Intercepted . | . . . . . . . Recyclers Shooed 1 | . 1 . . . . . Parts Field Recycled . | . . . . . . . Retrieved Matter . | . . . . . . . Parts Self-Destructed . | . . . . . . . Prevented . | . . . . . . . Kills | -11 -10 -9 -9 -8 -7 -7 ------- Run | Yrd Mat Mat Min Mat Fac DSF Combat Hostiles Destroyed 20 | . 10 . 4 6 . . Guns 11 | . 6 . 1 4 . . Cannons 5 | . . . 3 2 . . AOE 4 | . 4 . . . . . Classes Destroyed 7 | 2 4 . . 1 . . Tunneler 1 | 1 . . . . . . Recycler 1 | 1 . . . . . . Operator 2 | . 1 . . 1 . . Watcher 2 | . 2 . . . . . Swarmer 16 | . 8 . 4 4 . . Grunt 2 | . 2 . . . . . Sentry 2 | . . . . 2 . . Best Kill Streak 5 | 2 5 . 4 5 . . Combat Bots Only 4 | . 4 . 4 4 . . Max Kills in Single Turn 3 | 1 3 . 1 1 . . Gunslinging . | . . . . . . . Exploded 2 | . 2 . . . . . Melee . | . . . . . . . Uniques/NPCs Destroyed . | . . . . . . . Combat | -11 -10 -9 -9 -8 -7 -7 -------- Run | Yrd Mat Mat Min Mat Fac DSF Hostile Shots Fired 103 | . 36 6 11 37 . 13 Missed 38 | . 14 4 2 15 . 3 Damage Taken 850 | . 359 30 73 201 . 187 Core 185 | . 130 . 20 20 . 15 Absorbed by Shields 12 | . . . . . . 12 Redirected to Shielding 6 | . . . . 3 . 3 Core Remaining (%) 84 | 100 48 . 95 96 . . Volleys Fired 48 | 2 24 . 5 17 . . Largest 2 | 2 2 . 2 2 . . Hottest 110 | 60 100 . 100 110 . . Shots Fired 92 | 4 47 . 7 34 . . Gun 67 | 4 44 . 2 17 . . Cannon 25 | . 3 . 5 17 . . Launcher . | . . . . . . . Special . | . . . . . . . Kinetic 33 | 2 21 . . 10 . . Thermal 22 | . 3 . 5 14 . . Explosive . | . . . . . . . Electromagnetic 37 | 2 23 . 2 10 . . Robot Hit Streak 7 | 2 3 . 1 7 . . Robot Miss Streak 5 | 1 5 . 2 2 . . Penetration Max . | . . . . . . . Secondary Targets 2 | . 2 . . . . . Max Gunslinging Chain 1 | . 1 . . . . . Shots Hit Robots 45 | 3 19 . 3 20 . . Core Hits 29 | 3 14 . 4 8 . . Critical Kills . | . . . . . . . Critical Parts Destroyed . | . . . . . . . Critical Strikes . | . . . . . . . Melee Attacks . | . . . . . . . Impact . | . . . . . . . Slashing . | . . . . . . . Piercing . | . . . . . . . Sneak Attacks . | . . . . . . . Combat Hostiles . | . . . . . . . Follow-up Attacks . | . . . . . . . Damage Inflicted 1050 | 50 583 . 72 345 . . Guns 499 | 50 270 . 20 159 . . Cannons 238 | . . . 52 186 . . Explosions 313 | . 313 . . . . . Melee . | . . . . . . . Ramming . | . . . . . . . Kinetic 220 | 22 99 . . 99 . . Thermal 414 | . 238 . 52 124 . . Explosive 75 | . 75 . . . . . Electromagnetic 341 | 28 171 . 20 122 . . Impact . | . . . . . . . Slashing . | . . . . . . . Piercing . | . . . . . . . Highest Corruption . | . . . . . . . Average Corruption . | . . . . . . . Corruption Purged . | . . . . . . . Corruption Blocked . | . . . . . . . Overload Shots . | . . . . . . . Overflow Damage 127 | . 119 . . 8 . . Projectiles 8 | . . . . 8 . . Explosions 119 | . 119 . . . . . Melee . | . . . . . . . Knockbacks . | . . . . . . . Impact . | . . . . . . . Kinetic . | . . . . . . . Secondary . | . . . . . . . Self-Inflicted Damage 185 | . 185 . . . . . Shots 3 | . 3 . . . . . Rammed . | . . . . . . . Targets Rammed . | . . . . . . . Kicked . | . . . . . . . Crushed . | . . . . . . . Highest Temperature 416 | . 107 2 90 416 46 . Average Temperature 94 | . 18 2 44 159 18 . Received Heat Transfer 33 | . 6 9 . 18 . . Effects 4 | . . . . 4 . . Energy Bleed 2 | . . . . 2 . . Matter Decay 1 | . . . . 1 . . Short Circuit 1 | . . . . 1 . . Siege Activations . | . . . . . . . Robots Corrupted . | . . . . . . . Combat Hostiles . | . . . . . . . Parts Fried . | . . . . . . . Impact Corruptions . | . . . . . . . Robots Melted . | . . . . . . . Combat Hostiles . | . . . . . . . Parts Melted 4 | . 2 . . 2 . . Heat Transferred 670 | . 300 . 111 259 . . Parts Sabotaged . | . . . . . . . Parts Stolen . | . . . . . . . Parts Stripped . | . . . . . . . Power Chain Reactions 3 | . 3 . . . . . Alert | -11 -10 -9 -9 -8 -7 -7 ------- Run | Yrd Mat Mat Min Mat Fac DSF Peak Influence 477 | 10 477 236 167 180 54 41 Initial 201 | . 6 201 87 65 54 41 Average 161 | 3 223 218 164 93 54 35 Maximum Alert Level 2 | . 2 1 . . . . Low Security (%) 72 | 100 58 . 100 100 100 100 Level 1 17 | . 19 100 . . . . Level 2 9 | . 22 . . . . . Level 3 . | . . . . . . . Level 4 . | . . . . . . . Level 5 . | . . . . . . . High Security . | . . . . . . . Max Security . | . . . . . . . Squads Dispatched 5 | . 2 . . 1 . 2 Investigation 1 | . 1 . . . . . Extermination . | . . . . . . . Reinforcement 4 | . 1 . . 1 . 2 Assault . | . . . . . . . Garrison . | . . . . . . . Intercept . | . . . . . . . Searches Triggered . | . . . . . . . Construction Impeded . | . . . . . . . Haulers Reinforced . | . . . . . . . Active Scanning Responses . | . . . . . . . Cargo Convoy Interrupts . | . . . . . . . Stealth | -11 -10 -9 -9 -8 -7 -7 --------- Run | Yrd Mat Mat Min Mat Fac DSF Distress Signals 2 | . 1 1 . . . . Communications Jammed . | . . . . . . . Distress Signals . | . . . . . . . Times Spotted 53 | . 23 6 3 14 . 7 Peak Tracking Total 7 | . 4 7 3 7 . 7 Tactical Retreats 6 | . 4 . . 2 . . Traps | -11 -10 -9 -9 -8 -7 -7 ------- Run | Yrd Mat Mat Min Mat Fac DSF Traps Triggered 2 | . . . . . . 2 Indirectly . | . . . . . . . Trap Hack Attempts . | . . . . . . . Triggered . | . . . . . . . Disarmed . | . . . . . . . Reprogrammed . | . . . . . . . Reused . | . . . . . . . Traps Extracted . | . . . . . . . Installed . | . . . . . . . Triggered . | . . . . . . . Machines | -11 -10 -9 -9 -8 -7 -7 ---------- Run | Yrd Mat Mat Min Mat Fac DSF Machines Disabled 3 | . 2 . . 1 . . Max in Single Turn 2 | . 2 . . 1 . . Machines Repaired . | . . . . . . . Machines Dismantled . | . . . . . . . Machines Sabotaged . | . . . . . . . Overloaded Fab Kills . | . . . . . . . Hacking | -11 -10 -9 -9 -8 -7 -7 --------- Run | Yrd Mat Mat Min Mat Fac DSF Machines Accessed 7 | . 3 1 . 2 1 . Terminals 7 | . 3 1 . 2 1 . Fabricators . | . . . . . . . Repair Stations . | . . . . . . . Recycling Units . | . . . . . . . Scanalyzers . | . . . . . . . Garrison Access . | . . . . . . . Total Hacks 20 | . 10 5 . 4 1 . Successful 12 | . 7 2 . 2 1 . Failed 8 | . 3 3 . 2 . . Catastrophic 3 | . . 1 . 2 . . Database Lockouts . | . . . . . . . Manual 2 | . . 2 . . . . Terminals 20 | . 10 5 . 4 1 . Fabricators . | . . . . . . . Repair Stations . | . . . . . . . Recycling Units . | . . . . . . . Scanalyzers . | . . . . . . . Garrison Access . | . . . . . . . Terminal Hacks 12 | . 7 2 . 2 1 . Robot Analysis 1 | . 1 . . . . . Prototype ID Bank 1 | . 1 . . . . . Open DSF 1 | . . . . . 1 . Alert Level 2 | . 1 . . 1 . . Unreport Threat 1 | . . . . 1 . . Locate Traps 1 | . 1 . . . . . Security Status 1 | . . 1 . . . . Surveillance Status 1 | . 1 . . . . . Transport Status 1 | . . 1 . . . . Hauler Manifests 1 | . 1 . . . . . Zone Layout 1 | . 1 . . . . . Fabricator Hacks . | . . . . . . . Repair Station Hacks . | . . . . . . . Recycling Unit Hacks . | . . . . . . . Scanalyzer . | . . . . . . . Garrison Access Hacks . | . . . . . . . Unauthorized Hacks . | . . . . . . . Terminals . | . . . . . . . Fabricators . | . . . . . . . Repair Stations . | . . . . . . . Recycling Units . | . . . . . . . Scanalyzers . | . . . . . . . Garrison Access . | . . . . . . . Data Cores Recovered . | . . . . . . . Used . | . . . . . . . Hacking Detections 4 | . 1 1 . 1 1 . Full Trace Events . | . . . . . . . Feedback Events . | . . . . . . . Feedback Blocked . | . . . . . . . Robot Schematics Acquired . | . . . . . . . Robots Built . | . . . . . . . Authchips . | . . . . . . . Time . | . . . . . . . Total Robot Build Rating . | . . . . . . . Part Schematics Acquired . | . . . . . . . Parts Built . | . . . . . . . Authchips . | . . . . . . . Time . | . . . . . . . Total Part Build Rating . | . . . . . . . Parts Repaired . | . . . . . . . Time . | . . . . . . . Parts Recycled . | . . . . . . . Recycled Matter . | . . . . . . . Retrieved Matter . | . . . . . . . Retrieved Components . | . . . . . . . Parts Scanalyzed . | . . . . . . . Part Schematics Acquired . | . . . . . . . Parts Damaged . | . . . . . . . Bothacking | -11 -10 -9 -9 -8 -7 -7 ------------ Run | Yrd Mat Mat Min Mat Fac DSF Used RIF Installer . | . . . . . . . Robots Hacked . | . . . . . . . Non-combat . | . . . . . . . Combat . | . . . . . . . Robot Hacks Applied . | . . . . . . . Relay Couplers Released . | . . . . . . . Fabnet Peak Effective % . | . . . . . . . Robots Rewired . | . . . . . . . Allies Hacked . | . . . . . . . Hacks Repelled . | . . . . . . . Allies | -11 -10 -9 -9 -8 -7 -7 -------- Run | Yrd Mat Mat Min Mat Fac DSF Total Allies . | . . . . . . . Largest Group . | . . . . . . . Highest-Rated Group . | . . . . . . . Highest-Rated Ally . | . . . . . . . Total Orders . | . . . . . . . Ally Attacks . | . . . . . . . Total Damage . | . . . . . . . Kills . | . . . . . . . Allies Corrupted . | . . . . . . . Allies Melted . | . . . . . . . Intel | -11 -10 -9 -9 -8 -7 -7 ------- Run | Yrd Mat Mat Min Mat Fac DSF Robot Analysis Total 1 | . 1 . . . . . Derelict Logs Recovered 1 | . . . 1 . . . Drone Launches . | . . . . . . . Drone Recoveries . | . . . . . . . Exploration | -11 -10 -9 -9 -8 -7 -7 ------------- Run | Yrd Mat Mat Min Mat Fac DSF Turns Passed 755 | 43 325 69 110 142 27 39 Spaces Moved 978 | 29 487 120 55 181 69 37 Core 2 | 1 1 . . . . . Treads . | . . . . . . . Legs . | . . . . . . . Wheels 64 | 28 36 . . . . . Hover . | . . . . . . . Flight 912 | . 450 120 55 181 69 37 Fastest Speed 21 | 50 37 31 31 27 21 21 Average Speed 36 | 87 41 31 31 29 21 31 Slowest Speed 150 | 90 150 31 31 114 21 117 Overloaded Moves . | . . . . . . . Propulsion Burnouts . | . . . . . . . Robots Hopped 2 | . . . . 1 . 1 Cave-ins Triggered . | . . . . . . . Exploration Rate (%) 24 | 3 79 15 11 16 2 48 Regions Visited 6 Branch Regions 1 Pre-discovered Areas . | . . . . . . . Known Exits Taken 1 | . . . . . 1 . Unknown Exits Taken 5 | 1 1 1 1 1 . . Scrap Searched 1 | . . . 1 . . . Spaces Dug . | . . . . . . . Terrain Destroyed 42 | . 41 . . 1 . . Melee . | . . . . . . . Projectile 1 | . . . . 1 . . AOE 41 | . 41 . . . . . Terrain Rammed . | . . . . . . . Walls Destroyed . | . . . . . . . Machines Disabled . | . . . . . . . Actions | -11 -10 -9 -9 -8 -7 -7 --------- Run | Yrd Mat Mat Min Mat Fac DSF Total 1275 | 39 564 151 139 236 82 64 Wait 153 | . 34 30 72 11 6 . Move 969 | 28 486 119 54 178 69 35 Hop 2 | . . . . 1 . 1 Pick Up 21 | 3 6 . 3 5 1 3 Fast Attach 21 | 6 4 . 2 8 1 . Attach 13 | . 2 2 1 5 3 . Detach 3 | . . . . 1 2 . Swap 4 | . 1 . 1 1 . 1 Drop 20 | . 7 . 1 9 . 3 Fire 48 | 2 24 . 5 17 . . Melee . | . . . . . . . Ram . | . . . . . . . Kick . | . . . . . . . Crush . | . . . . . . . Escape Stasis 21 | . . . . . . 21 Rewire . | . . . . . . . Trap . | . . . . . . . Miscellaneous . | . . . . . . . Route ------- -11/Scrapyard -10/Materials (discovered 2 exits: *Mat / [*Min]) -9/Materials -9/Mines (discovered 2 exits: *Mat / Exi) -8/Materials -7/Factory -7/DSF History --------- Turn | Location | Event 20 | -11/Scrapyard | Discovered new exit (range 15) 44 | -11/Scrapyard | Entered Materials 249 | -10/Materials | Discovered new exit (range 13) 295 | -10/Materials | Core integrity fell below 50% 339 | -10/Materials | Build established: Mutant 357 | -10/Materials | Discovered new exit (range 18) 369 | -10/Materials | Entered another Materials area 369 | -9/Materials | Evolved 2 slots: Propulsion x2 436 | -9/Materials | Discovered new exit (range 9) 438 | -9/Materials | Entered Mines 467 | -9/Mines | Identified exit to Exiles 545 | -9/Mines | Discovered new exit (range 11) 548 | -9/Mines | Entered Materials 548 | -8/Materials | Evolved 2 slots: Propulsion x1, Utility x1 646 | -8/Materials | Lost 4 parts (4n) 685 | -8/Materials | Build established: Scavenger-Sprinter 687 | -8/Materials | Discovered new exit (range 13) 690 | -8/Materials | Entered Factory 690 | -7/Factory | Evolved 2 slots: Propulsion x2 717 | -7/Factory | Identified exit to DSF 717 | -7/Factory | Entered DSF 738 | -7/DSF | Additional patrols routed to DSF 756 | -7/DSF | Self-destructed Last Messages --------------- 00740_ Field strength at 84. 00741_ Field strength at 76. 00742_ Field strength at 68. 00743_ Field strength at 60. 00744_ Field strength at 52. 00745_ ALERT: Suspicious intruders detected, dispatching Cutter reinforcements to area. 00745_ Field strength at 44. 00746_ Field strength at 36. 00747_ X-67 Chaingunner springs to life. 00747_ Field strength at 28. 00748_ Field strength at 15. 00749_ Field strength at 7. 00750_ Stasis field depleted. 00750_ Cesium-ion Thruster destroyed. 00750_ Flight Unit destroyed. 00751_ Dropped Adv. Assault Cannon. 00752_ Flight Unit destroyed. 00755_ Gauss Rifle severed. 00756_ Flight Unit destroyed. Map ----- +----------------------------------------------------+ | ?????????????????????????????????? | | ?????????????????????????????????? | | ?????????????????????????????????? | | ?????????????????????????????????? | | ?????????????????????????????????? | | ?????????????????????????????????? | | ?????????????????????????????????? | | ?????????????????????????????????? | | ????????? ??????????????????????? | | ????????? ??????????????????????? | | ????????? ??????????????????????? | | ???????## #?????????????????????? | | ??????? #?????????????????????? | | ???????? #?????????? ??????? | | ????????! ?????????? ??????? | | ????????! ?????????? H ??????? | | ????????! ?????????? ??????? | | ????????= #?????????? ??????? | | ????????= #??????????# #??????? | | ???????## ###???????## ##?????? | | ???????#[ [[#???????!! [[?????? | | ????????[ [[?????????! [??????? | | ????????[ [??????????! [??????? | | ???????##c ###??????### ###????? | | ???????#[cc[[#??????#!! ==#????? | | ???????#[@c[[#??????#!! ==#????? | | ???????##cc##########!! ==###### | | ??????### ###[[#[[[#?# #?#!!!# | | ????###"" ##[[#[[[### ###!!!# | | ???#""""" x ^ | | ????"##"" ^ [ | | ??????#"""""##] #] # !!!!!#!!!#! | | ??????#"""""######### !!!!!###### | | ??????####"##???????#########????? | | ?????????#"#?????????????????????? | | ?????????""#?????????????????????? | | ??????????#??????????????????????? | | ?????????????????????????????????? | | ?????????????????????????????????? | | ?????????????????????????????????? | | ?????????????????????????????????? | | | | | | | | | | | | | | | | | | | +----------------------------------------------------+ Best States ------------- Heat Dissipation 34 Energy Generation 16 Energy Capacity 290 Matter Stores 300 Matter Capacity 300 Sight Range 18 Terrain Scan Density 10 Armor Coverage 225 Resistance: KI 30 Core Shielding 20 Evasion (%) 64 Targeting Accuracy 6 Item Schematics ----------------- None Robot Schematics ------------------ None Fabricated ------------ Nothing Alien Tech Used ----------------- None Achievements -------------- Can't Catch Me Challenges ------------ None Game ------ Seed BackupTitaniumMantle Manual? 0 Play Time 00:16:48 Cumulative 21.9 hours Start 2024.04.26 @ 19:15:42 End 2024.04.26 @ 19:30:45 Sessions 1 Manual Loads 0 Difficulty Rogue Special Mode None Game No. 26 Rogue 26 Adventurer 0 Explorer 0 Win Type - Total 0 Types 0/0/0/0/0/0/0/0/0 Lore% 17 Gallery% 29 Achievement% 21 Wizard Run 0 Options --------- Layout 1 ASCII 0 Keyboard 0 Movement Mouse Keybinds 0 Fullscreen 1 Font 24/Smallcaps Map View 50x35 Zoom Use 0% Tactical HUD 1 Map Filters NONE Filters NONE Steam 1 RUN: c668e9a7-b47d-461b-a462-c6a5e9f0fedf